[Event "Titled Tuesday Blitz April 05 Late 2022"]
[White "Estrada Nieto, Julian"]
[Black "Coelho, Ramyres Santana"]
[WhiteFideId "5101018"]
[BlackFideId "2120690"]
[WhiteElo "2252"]
[BlackElo "1888"]
[Result "1-0"]
[Round "07"]
[TimeControl "180+1"]
[Date "2022.04.06"]
[WhiteClock "0:01:32"]
[BlackClock "0:00:53"]

1. e4 {[%clk 0:03:00]}  c5 {[%clk 0:02:51]} 2. Nf3 {[%clk 0:03:01]}  d6 {[%clk 0:02:43]} 3. d4 {[%clk 0:03:01]}  cxd4 {[%clk 0:02:44]} 4. Qxd4 {[%clk 0:03:01]}  Nc6 {[%clk 0:02:40]} 5. Bb5 {[%clk 0:03:00]}  Qa5+ {[%clk 0:02:40]} 6. Nc3 {[%clk 0:02:59]}  Qxb5 {[%clk 0:02:40]} 7. Nxb5 {[%clk 0:02:59]}  Nxd4 {[%clk 0:02:40]} 8. Nfxd4 {[%clk 0:02:59]}  Kd8 {[%clk 0:02:36]} 9. Be3 {[%clk 0:02:59]}  a6 {[%clk 0:02:35]} 10. Nc3 {[%clk 0:02:58]}  e5 {[%clk 0:02:36]} 11. Nde2 {[%clk 0:02:54]}  Nf6 {[%clk 0:02:30]} 12. O-O-O {[%clk 0:02:47]}  Be6 {[%clk 0:02:29]} 13. Bg5 {[%clk 0:02:47]}  Be7 {[%clk 0:02:28]} 14. Bxf6 {[%clk 0:02:46]}  gxf6 {[%clk 0:02:29]} 15. Nd5 {[%clk 0:02:45]}  Bxd5 {[%clk 0:02:24]} 16. Rxd5 {[%clk 0:02:45]}  Rc8 {[%clk 0:02:24]} 17. Ng3 {[%clk 0:02:43]}  Rc5 {[%clk 0:02:11]} 18. Rhd1 {[%clk 0:02:37]}  Rxd5 {[%clk 0:02:10]} 19. Rxd5 {[%clk 0:02:36]}  Kd7 {[%clk 0:02:08]} 20. Nf5 {[%clk 0:02:35]}  Rc8 {[%clk 0:02:07]} 21. Kd2 {[%clk 0:02:29]}  Rc5 {[%clk 0:02:05]} 22. Rd3 {[%clk 0:02:26]}  Ke6 {[%clk 0:01:55]} 23. Rh3 {[%clk 0:02:23]}  d5 {[%clk 0:01:51]} 24. f3 {[%clk 0:02:13]}  dxe4 {[%clk 0:01:45]} 25. fxe4 {[%clk 0:02:13]}  Rc4 {[%clk 0:01:44]} 26. Kd3 {[%clk 0:02:12]}  Rb4 {[%clk 0:01:38]} 27. b3 {[%clk 0:02:10]}  Rb6 {[%clk 0:01:35]} 28. Rxh7 {[%clk 0:02:08]}  Rc6 {[%clk 0:01:33]} 29. Rh8 {[%clk 0:02:06]}  Bb4 {[%clk 0:01:30]} 30. c4 {[%clk 0:01:53]}  b5 {[%clk 0:01:29]} 31. h4 {[%clk 0:01:47]}  Rc7 {[%clk 0:01:23]} 32. Rd8 {[%clk 0:01:40]}  Be7 {[%clk 0:01:03]} 33. Re8 {[%clk 0:01:40]}  Rd7+ {[%clk 0:01:02]} 34. Ke3 {[%clk 0:01:39]}  bxc4 {[%clk 0:01:01]} 35. bxc4 {[%clk 0:01:38]}  a5 {[%clk 0:00:58]} 36. h5 {[%clk 0:01:38]}  a4 {[%clk 0:00:58]} 37. h6 {[%clk 0:01:37]}  a3 {[%clk 0:00:58]} 38. Rxe7+ {[%clk 0:01:32]}  Rxe7 {[%clk 0:00:57]} 39. Nxe7 {[%clk 0:01:32]}  Kxe7 {[%clk 0:00:53]} 40. h7 {[%clk 0:01:32]} 1-0


[Site "https://www.chess.com"]

[Event "Titled Tuesday Blitz April 05 Late 2022"]
[White "Fishbein, Alexander"]
[Black "Kazakouski, Valery"]
[WhiteFideId "2000377"]
[BlackFideId "13507443"]
[WhiteElo "2442"]
[BlackElo "2524"]
[Result "0-1"]
[Round "07"]
[TimeControl "180+1"]
[Date "2022.04.05"]
[WhiteClock "0:00:03"]
[BlackClock "0:00:06"]

1. e4 {[%clk 0:02:59]}  c5 {[%clk 0:02:53]} 2. Nf3 {[%clk 0:02:54]}  a6 {[%clk 0:02:51]} 3. c3 {[%clk 0:02:54]}  d5 {[%clk 0:02:50]} 4. exd5 {[%clk 0:02:50]}  Qxd5 {[%clk 0:02:51]} 5. d4 {[%clk 0:02:50]}  Bg4 {[%clk 0:02:48]} 6. Be2 {[%clk 0:02:47]}  Nf6 {[%clk 0:02:47]} 7. O-O {[%clk 0:02:47]}  e6 {[%clk 0:02:47]} 8. Be3 {[%clk 0:02:45]}  cxd4 {[%clk 0:02:47]} 9. cxd4 {[%clk 0:02:42]}  Nc6 {[%clk 0:02:46]} 10. Nc3 {[%clk 0:02:42]}  Qd6 {[%clk 0:02:47]} 11. h3 {[%clk 0:02:38]}  Bh5 {[%clk 0:02:47]} 12. Rc1 {[%clk 0:02:33]}  Be7 {[%clk 0:02:45]} 13. Qb3 {[%clk 0:02:28]}  Qb4 {[%clk 0:02:36]} 14. Qc2 {[%clk 0:02:00]}  O-O {[%clk 0:02:22]} 15. Rfd1 {[%clk 0:01:47]}  Rfd8 {[%clk 0:02:21]} 16. a3 {[%clk 0:01:43]}  Qd6 {[%clk 0:02:18]} 17. d5 {[%clk 0:01:20]}  exd5 {[%clk 0:02:10]} 18. Nd4 {[%clk 0:01:18]}  Bg6 {[%clk 0:02:06]} 19. Qb3 {[%clk 0:01:14]}  Rab8 {[%clk 0:01:29]} 20. Bf3 {[%clk 0:01:13]}  Ne5 {[%clk 0:01:25]} 21. Be2 {[%clk 0:00:58]}  b5 {[%clk 0:01:20]} 22. Bf4 {[%clk 0:00:44]}  Rbc8 {[%clk 0:01:03]} 23. Bxe5 {[%clk 0:00:40]}  Qxe5 {[%clk 0:01:04]} 24. Bf3 {[%clk 0:00:38]}  Rc4 {[%clk 0:00:56]} 25. Nce2 {[%clk 0:00:33]}  Rdc8 {[%clk 0:00:51]} 26. Rxc4 {[%clk 0:00:31]}  dxc4 {[%clk 0:00:45]} 27. Qc3 {[%clk 0:00:26]}  Ne4 {[%clk 0:00:41]} 28. Bxe4 {[%clk 0:00:24]}  Qxe4 {[%clk 0:00:38]} 29. Ng3 {[%clk 0:00:23]}  Qb7 {[%clk 0:00:38]} 30. Ngf5 {[%clk 0:00:20]}  Bf6 {[%clk 0:00:37]} 31. Nd6 {[%clk 0:00:20]}  Qc7 {[%clk 0:00:25]} 32. Nxc8 {[%clk 0:00:20]}  Qxc8 {[%clk 0:00:26]} 33. Qe3 {[%clk 0:00:20]}  h6 {[%clk 0:00:25]} 34. Re1 {[%clk 0:00:19]}  Kh7 {[%clk 0:00:24]} 35. Re2 {[%clk 0:00:15]}  Qd7 {[%clk 0:00:20]} 36. Nf3 {[%clk 0:00:15]}  Qd1+ {[%clk 0:00:20]} 37. Kh2 {[%clk 0:00:13]}  Bd3 {[%clk 0:00:19]} 38. Rd2 {[%clk 0:00:12]}  Qb1 {[%clk 0:00:19]} 39. Nd4 {[%clk 0:00:11]}  Qf1 {[%clk 0:00:15]} 40. f4 {[%clk 0:00:09]}  Qb1 {[%clk 0:00:12]} 41. g4 {[%clk 0:00:07]}  Qf1 {[%clk 0:00:10]} 42. Nf3 {[%clk 0:00:07]}  Qb1 {[%clk 0:00:09]} 43. Ne5 {[%clk 0:00:07]}  Bxe5 {[%clk 0:00:08]} 44. fxe5 {[%clk 0:00:07]}  Bg6 {[%clk 0:00:05]} 45. Rf2 {[%clk 0:00:07]}  Qd1 {[%clk 0:00:05]} 46. Qd2 {[%clk 0:00:07]}  Qb3 {[%clk 0:00:05]} 47. Qc3 {[%clk 0:00:07]}  Qa4 {[%clk 0:00:05]} 48. Re2 {[%clk 0:00:06]}  Qd1 {[%clk 0:00:05]} 49. Re1 {[%clk 0:00:06]}  Qd5 {[%clk 0:00:05]} 50. Qe3 {[%clk 0:00:06]}  Qe6 {[%clk 0:00:05]} 51. Qf4 {[%clk 0:00:05]}  a5 {[%clk 0:00:05]} 52. Rd1 {[%clk 0:00:06]}  b4 {[%clk 0:00:05]} 53. Rd6 {[%clk 0:00:06]}  Qc8 {[%clk 0:00:06]} 54. axb4 {[%clk 0:00:06]}  axb4 {[%clk 0:00:07]} 55. e6 {[%clk 0:00:06]}  fxe6 {[%clk 0:00:06]} 56. Qe5 {[%clk 0:00:06]}  c3 {[%clk 0:00:06]} 57. bxc3 {[%clk 0:00:06]}  bxc3 {[%clk 0:00:07]} 58. Qxe6 {[%clk 0:00:06]}  Qc7 {[%clk 0:00:06]} 59. Qd7 {[%clk 0:00:04]}  Qc5 {[%clk 0:00:05]} 60. Rd5 {[%clk 0:00:03]}  Qf2+ {[%clk 0:00:06]} 0-1


[Site "https://www.chess.com"]

[Event "Titled Tuesday Blitz April 05 Late 2022"]
[White "Foisor, Sabina-Francesca"]
[Black "Dobre, Claudiu-Cristian"]
[WhiteFideId "1212915"]
[BlackFideId "1211854"]
[WhiteElo "2243"]
[BlackElo "2207"]
[Result "1-0"]
[Round "07"]
[TimeControl "180+1"]
[Date "2022.04.06"]
[WhiteClock "0:00:15"]
[BlackClock "0:00:02"]

1. d4 {[%clk 0:03:00]}  d5 {[%clk 0:02:59]} 2. c4 {[%clk 0:03:00]}  c6 {[%clk 0:02:59]} 3. Nf3 {[%clk 0:02:58]}  Nf6 {[%clk 0:02:58]} 4. Nbd2 {[%clk 0:02:58]}  Bf5 {[%clk 0:02:54]} 5. Nh4 {[%clk 0:02:55]}  e6 {[%clk 0:02:48]} 6. Qb3 {[%clk 0:02:46]}  Qb6 {[%clk 0:02:38]} 7. Nxf5 {[%clk 0:02:41]}  exf5 {[%clk 0:02:37]} 8. c5 {[%clk 0:02:36]}  Qxb3 {[%clk 0:02:31]} 9. axb3 {[%clk 0:02:37]}  Nbd7 {[%clk 0:02:23]} 10. b4 {[%clk 0:02:36]}  a6 {[%clk 0:02:20]} 11. e3 {[%clk 0:02:36]}  Rc8 {[%clk 0:02:18]} 12. Bd3 {[%clk 0:02:28]}  g6 {[%clk 0:02:17]} 13. Nb3 {[%clk 0:02:26]}  Be7 {[%clk 0:02:11]} 14. O-O {[%clk 0:02:11]}  O-O {[%clk 0:02:09]} 15. Bd2 {[%clk 0:02:08]}  Ne8 {[%clk 0:01:48]} 16. f3 {[%clk 0:02:08]}  Ndf6 {[%clk 0:01:44]} 17. Be1 {[%clk 0:02:07]}  Nc7 {[%clk 0:01:40]} 18. Na5 {[%clk 0:02:01]}  f4 {[%clk 0:01:22]} 19. e4 {[%clk 0:01:42]}  Rb8 {[%clk 0:01:17]} 20. g3 {[%clk 0:01:02]}  Ne6 {[%clk 0:01:14]} 21. Bf2 {[%clk 0:00:45]}  Bd8 {[%clk 0:00:53]} 22. Nb3 {[%clk 0:00:39]}  Bc7 {[%clk 0:00:49]} 23. Kg2 {[%clk 0:00:39]}  Rbd8 {[%clk 0:00:38]} 24. e5 {[%clk 0:00:39]}  Nh5 {[%clk 0:00:38]} 25. g4 {[%clk 0:00:32]}  Nhg7 {[%clk 0:00:34]} 26. h4 {[%clk 0:00:33]}  h5 {[%clk 0:00:33]} 27. g5 {[%clk 0:00:29]}  Nf5 {[%clk 0:00:28]} 28. Bxf5 {[%clk 0:00:23]}  gxf5 {[%clk 0:00:28]} 29. Nc1 {[%clk 0:00:23]}  a5 {[%clk 0:00:15]} 30. bxa5 {[%clk 0:00:22]}  Ra8 {[%clk 0:00:15]} 31. b4 {[%clk 0:00:22]}  b6 {[%clk 0:00:15]} 32. cxb6 {[%clk 0:00:20]}  Bxb6 {[%clk 0:00:15]} 33. Nb3 {[%clk 0:00:20]}  Ba7 {[%clk 0:00:14]} 34. Rfc1 {[%clk 0:00:20]}  Rfc8 {[%clk 0:00:14]} 35. Rc2 {[%clk 0:00:21]}  Rab8 {[%clk 0:00:15]} 36. Ra4 {[%clk 0:00:19]}  Kf8 {[%clk 0:00:13]} 37. Kf1 {[%clk 0:00:17]}  Ke7 {[%clk 0:00:13]} 38. Ke2 {[%clk 0:00:17]}  Kd7 {[%clk 0:00:14]} 39. Kd3 {[%clk 0:00:18]}  Rb5 {[%clk 0:00:14]} 40. Be1 {[%clk 0:00:19]}  Nf8 {[%clk 0:00:13]} 41. Bd2 {[%clk 0:00:19]}  Ng6 {[%clk 0:00:13]} 42. Be1 {[%clk 0:00:19]}  Rcb8 {[%clk 0:00:12]} 43. Nc1 {[%clk 0:00:16]}  Nf8 {[%clk 0:00:12]} 44. Ne2 {[%clk 0:00:15]}  Ne6 {[%clk 0:00:11]} 45. Rc1 {[%clk 0:00:14]}  R8b7 {[%clk 0:00:09]} 46. Ra2 {[%clk 0:00:15]}  Bb8 {[%clk 0:00:09]} 47. Rac2 {[%clk 0:00:16]}  Rc7 {[%clk 0:00:08]} 48. Bd2 {[%clk 0:00:15]}  Ba7 {[%clk 0:00:06]} 49. Bxf4 {[%clk 0:00:14]}  Nxf4+ {[%clk 0:00:03]} 50. Nxf4 {[%clk 0:00:15]}  Rxb4 {[%clk 0:00:03]} 51. Ne2 {[%clk 0:00:15]}  Ke6 {[%clk 0:00:03]} 52. Rxc6+ {[%clk 0:00:15]}  Rxc6 {[%clk 0:00:03]} 53. Rxc6+ {[%clk 0:00:15]}  Kd7 {[%clk 0:00:03]} 54. Ra6 {[%clk 0:00:16]}  Bb8 {[%clk 0:00:02]} 55. Rb6 {[%clk 0:00:16]}  Bc7 {[%clk 0:00:02]} 56. Rxb4 {[%clk 0:00:15]} 1-0


[Site "https://www.chess.com"]

[Event "Titled Tuesday Blitz April 05 Late 2022"]
[White "Gatterer, Florian"]
[Black "Ashiev, Eduard"]
[WhiteFideId "811688"]
[BlackFideId "4130090"]
[WhiteElo "2218"]
[BlackElo "2004"]
[Result "1-0"]
[Round "07"]
[TimeControl "180+1"]
[Date "2022.04.06"]
[WhiteClock "0:00:19"]
[BlackClock "0:00:01"]

1. b3 {[%clk 0:03:00]}  d5 {[%clk 0:02:59]} 2. Nf3 {[%clk 0:02:59]}  Nf6 {[%clk 0:02:58]} 3. Bb2 {[%clk 0:02:58]}  e6 {[%clk 0:02:57]} 4. e3 {[%clk 0:02:57]}  c5 {[%clk 0:02:57]} 5. c4 {[%clk 0:02:52]}  Nc6 {[%clk 0:02:56]} 6. cxd5 {[%clk 0:02:52]}  exd5 {[%clk 0:02:54]} 7. Bb5 {[%clk 0:02:49]}  Bd6 {[%clk 0:02:42]} 8. O-O {[%clk 0:02:47]}  O-O {[%clk 0:02:41]} 9. d4 {[%clk 0:02:47]}  Be6 {[%clk 0:02:28]} 10. dxc5 {[%clk 0:02:44]}  Bxc5 {[%clk 0:02:27]} 11. Nc3 {[%clk 0:02:40]}  Rc8 {[%clk 0:02:18]} 12. Rc1 {[%clk 0:02:39]}  Ne7 {[%clk 0:02:14]} 13. Ne2 {[%clk 0:02:35]}  Ng6 {[%clk 0:02:10]} 14. Ned4 {[%clk 0:02:35]}  Ne4 {[%clk 0:02:08]} 15. Nxe6 {[%clk 0:02:29]}  fxe6 {[%clk 0:02:08]} 16. Bd3 {[%clk 0:02:29]}  Ng5 {[%clk 0:01:54]} 17. Bxg6 {[%clk 0:02:10]}  Nxf3+ {[%clk 0:01:46]} 18. gxf3 {[%clk 0:02:05]}  hxg6 {[%clk 0:01:44]} 19. Rxc5 {[%clk 0:01:47]}  Rxc5 {[%clk 0:01:42]} 20. Bxg7 {[%clk 0:01:46]}  Rf5 {[%clk 0:01:22]} 21. Bb2 {[%clk 0:01:35]}  Rc7 {[%clk 0:01:11]} 22. Qd4 {[%clk 0:01:34]}  Rh7 {[%clk 0:01:10]} 23. Rc1 {[%clk 0:01:13]}  Rxf3 {[%clk 0:00:36]} 24. Kf1 {[%clk 0:01:04]}  Qf8 {[%clk 0:00:23]} 25. Rc2 {[%clk 0:01:00]}  Rf5 {[%clk 0:00:14]} 26. Ke1 {[%clk 0:00:47]}  Qe8 {[%clk 0:00:13]} 27. h4 {[%clk 0:00:39]}  Rf8 {[%clk 0:00:13]} 28. Rc7 {[%clk 0:00:37]}  Rff7 {[%clk 0:00:11]} 29. Rc2 {[%clk 0:00:32]}  Qd8 {[%clk 0:00:07]} 30. Rc5 {[%clk 0:00:28]}  Rc7 {[%clk 0:00:06]} 31. Rxc7 {[%clk 0:00:24]}  Qxc7 {[%clk 0:00:06]} 32. Qf6 {[%clk 0:00:24]}  Qc8 {[%clk 0:00:03]} 33. Qxg6+ {[%clk 0:00:23]}  Kf8 {[%clk 0:00:03]} 34. Qxh7 {[%clk 0:00:22]}  Qc2 {[%clk 0:00:02]} 35. Qg7+ {[%clk 0:00:21]}  Ke8 {[%clk 0:00:02]} 36. Qc3 {[%clk 0:00:21]}  Qb1+ {[%clk 0:00:01]} 37. Ke2 {[%clk 0:00:21]}  Qxa2 {[%clk 0:00:01]} 38. Kf3 {[%clk 0:00:22]}  Qa6 {[%clk 0:00:01]} 39. h5 {[%clk 0:00:20]}  Qf1 {[%clk 0:00:01]} 40. Qh8+ {[%clk 0:00:19]} 1-0


[Site "https://www.chess.com"]

[Event "Titled Tuesday Blitz April 05 Late 2022"]
[White "Gledura, Benjamin"]
[Black "Melkumyan, Hrant"]
[WhiteFideId "712779"]
[BlackFideId "13302485"]
[WhiteElo "2326"]
[BlackElo "2604"]
[Result "0-1"]
[Round "07"]
[TimeControl "180+1"]
[Date "2022.04.05"]
[WhiteClock "0:00:19"]
[BlackClock "0:01:39"]

1. e4 {[%clk 0:03:00]}  e5 {[%clk 0:02:47]} 2. Nf3 {[%clk 0:03:00]}  Nc6 {[%clk 0:02:47]} 3. Bc4 {[%clk 0:03:00]}  Nf6 {[%clk 0:02:46]} 4. d3 {[%clk 0:03:00]}  Be7 {[%clk 0:02:45]} 5. O-O {[%clk 0:02:59]}  O-O {[%clk 0:02:46]} 6. Nc3 {[%clk 0:02:57]}  d6 {[%clk 0:02:46]} 7. a3 {[%clk 0:02:58]}  Be6 {[%clk 0:02:45]} 8. Nd5 {[%clk 0:02:54]}  Nb8 {[%clk 0:02:44]} 9. Ba2 {[%clk 0:02:48]}  Nbd7 {[%clk 0:02:44]} 10. c3 {[%clk 0:02:41]}  Bxd5 {[%clk 0:02:35]} 11. exd5 {[%clk 0:02:41]}  Ne8 {[%clk 0:02:35]} 12. Re1 {[%clk 0:02:38]}  f5 {[%clk 0:02:33]} 13. Nd2 {[%clk 0:02:28]}  Bg5 {[%clk 0:02:30]} 14. g3 {[%clk 0:02:09]}  Nef6 {[%clk 0:02:28]} 15. f4 {[%clk 0:02:01]}  Bh6 {[%clk 0:02:24]} 16. Nf3 {[%clk 0:01:58]}  exf4 {[%clk 0:02:16]} 17. Nd4 {[%clk 0:01:58]}  fxg3 {[%clk 0:02:06]} 18. Bxh6 {[%clk 0:01:52]}  gxh2+ {[%clk 0:02:03]} 19. Kh1 {[%clk 0:01:52]}  gxh6 {[%clk 0:01:58]} 20. Nxf5 {[%clk 0:01:37]}  Ne5 {[%clk 0:01:50]} 21. Qd2 {[%clk 0:01:15]}  Nfg4 {[%clk 0:01:40]} 22. Nxh6+ {[%clk 0:01:09]}  Kh8 {[%clk 0:01:40]} 23. Nxg4 {[%clk 0:00:47]}  Nxg4 {[%clk 0:01:39]} 24. Rf1 {[%clk 0:00:19]}  Qh4 {[%clk 0:01:39]} 0-1


[Site "https://www.chess.com"]

[Event "Titled Tuesday Blitz April 05 Late 2022"]
[White "Gogolev, Artem"]
[Black "Quintiliano Pinto, Renato R."]
[WhiteFideId "4116615"]
[BlackFideId "2117568"]
[WhiteElo "2126"]
[BlackElo "2439"]
[Result "1-0"]
[Round "07"]
[TimeControl "180+1"]
[Date "2022.04.06"]
[WhiteClock "0:01:31"]
[BlackClock "0:01:04"]

1. d4 {[%clk 0:02:59]}  Nf6 {[%clk 0:03:00]} 2. Nf3 {[%clk 0:02:58]}  e6 {[%clk 0:03:01]} 3. c4 {[%clk 0:02:57]}  b6 {[%clk 0:03:01]} 4. g3 {[%clk 0:02:57]}  Bb7 {[%clk 0:03:02]} 5. Bg2 {[%clk 0:02:58]}  Bb4+ {[%clk 0:03:01]} 6. Nbd2 {[%clk 0:02:56]}  O-O {[%clk 0:03:01]} 7. O-O {[%clk 0:02:56]}  d5 {[%clk 0:03:01]} 8. Qc2 {[%clk 0:02:55]}  Qc8 {[%clk 0:02:59]} 9. Ne5 {[%clk 0:02:52]}  Nbd7 {[%clk 0:02:56]} 10. cxd5 {[%clk 0:02:42]}  Nxe5 {[%clk 0:02:50]} 11. dxe5 {[%clk 0:02:42]}  Nxd5 {[%clk 0:02:51]} 12. Ne4 {[%clk 0:02:37]}  Be7 {[%clk 0:02:50]} 13. Bg5 {[%clk 0:02:33]}  h6 {[%clk 0:02:49]} 14. Bxe7 {[%clk 0:02:31]}  Nxe7 {[%clk 0:02:50]} 15. Rac1 {[%clk 0:02:29]}  Nd5 {[%clk 0:02:31]} 16. Rfd1 {[%clk 0:02:18]}  Rd8 {[%clk 0:02:27]} 17. Qb3 {[%clk 0:02:06]}  Qb8 {[%clk 0:01:56]} 18. h4 {[%clk 0:02:01]}  a5 {[%clk 0:01:42]} 19. a3 {[%clk 0:02:00]}  Qa7 {[%clk 0:01:40]} 20. h5 {[%clk 0:01:52]}  Rac8 {[%clk 0:01:39]} 21. Qf3 {[%clk 0:01:50]}  Rf8 {[%clk 0:01:15]} 22. Qg4 {[%clk 0:01:46]}  Kh8 {[%clk 0:01:10]} 23. Rd3 {[%clk 0:01:37]}  f5 {[%clk 0:01:02]} 24. exf6 {[%clk 0:01:36]}  Nxf6 {[%clk 0:01:03]} 25. Nxf6 {[%clk 0:01:36]}  Rxf6 {[%clk 0:01:04]} 26. Rd7 {[%clk 0:01:31]} 1-0


[Site "https://www.chess.com"]

[Event "Titled Tuesday Blitz April 05 Late 2022"]
[White "Golubev, Mikhail"]
[Black "Adewumi, Tanitoluwa"]
[WhiteFideId "14100983"]
[BlackFideId "30966396"]
[WhiteElo "2374"]
[BlackElo "2545"]
[Result "0-1"]
[Round "07"]
[TimeControl "180+1"]
[Date "2022.04.06"]
[WhiteClock "0:01:07"]
[BlackClock "0:00:38"]

1. e4 {[%clk 0:03:00]}  c5 {[%clk 0:02:53]} 2. Nf3 {[%clk 0:03:00]}  Nc6 {[%clk 0:02:48]} 3. Nc3 {[%clk 0:02:58]}  e5 {[%clk 0:02:46]} 4. Bc4 {[%clk 0:02:57]}  d6 {[%clk 0:02:40]} 5. d3 {[%clk 0:02:55]}  h6 {[%clk 0:02:32]} 6. Nd2 {[%clk 0:02:53]}  Nf6 {[%clk 0:02:20]} 7. Nf1 {[%clk 0:02:53]}  Be7 {[%clk 0:02:18]} 8. Ne3 {[%clk 0:02:53]}  O-O {[%clk 0:02:19]} 9. O-O {[%clk 0:02:52]}  Be6 {[%clk 0:02:18]} 10. Ned5 {[%clk 0:02:45]}  Na5 {[%clk 0:02:11]} 11. Nxf6+ {[%clk 0:02:41]}  Bxf6 {[%clk 0:02:12]} 12. Bd5 {[%clk 0:02:40]}  Rb8 {[%clk 0:02:07]} 13. a4 {[%clk 0:02:39]}  a6 {[%clk 0:02:04]} 14. Bd2 {[%clk 0:02:26]}  b5 {[%clk 0:02:03]} 15. axb5 {[%clk 0:02:21]}  axb5 {[%clk 0:02:04]} 16. Bxe6 {[%clk 0:02:18]}  fxe6 {[%clk 0:02:03]} 17. Qg4 {[%clk 0:02:17]}  Re8 {[%clk 0:01:56]} 18. Bxh6 {[%clk 0:02:17]}  b4 {[%clk 0:01:53]} 19. Ne2 {[%clk 0:02:14]}  Kf7 {[%clk 0:01:41]} 20. Bd2 {[%clk 0:02:02]}  Ke7 {[%clk 0:01:23]} 21. f4 {[%clk 0:02:01]}  exf4 {[%clk 0:01:24]} 22. Nxf4 {[%clk 0:01:59]}  Kd7 {[%clk 0:01:24]} 23. Nd5 {[%clk 0:01:43]}  Bd4+ {[%clk 0:01:19]} 24. Kh1 {[%clk 0:01:43]}  Bxb2 {[%clk 0:01:05]} 25. Rf7+ {[%clk 0:01:35]}  Kc6 {[%clk 0:01:05]} 26. Bg5 {[%clk 0:01:31]}  Qc8 {[%clk 0:00:45]} 27. Rxa5 {[%clk 0:01:30]}  exd5 {[%clk 0:00:45]} 28. exd5+ {[%clk 0:01:25]}  Kb6 {[%clk 0:00:38]} 29. Qxc8 {[%clk 0:01:07]}  Re1+ {[%clk 0:00:38]} 0-1


[Site "https://www.chess.com"]

[Event "Titled Tuesday Blitz April 05 Late 2022"]
[White "Hasangatin, Ramil"]
[Black "Villegas, Pierre"]
[WhiteFideId "4122160"]
[BlackFideId "654183"]
[WhiteElo "2375"]
[BlackElo "2386"]
[Result "0-1"]
[Round "07"]
[TimeControl "180+1"]
[Date "2022.04.06"]
[WhiteClock "0:01:38"]
[BlackClock "0:00:46"]

1. e4 {[%clk 0:03:00]}  c6 {[%clk 0:02:59]} 2. Nf3 {[%clk 0:03:00]}  d5 {[%clk 0:02:59]} 3. d3 {[%clk 0:03:01]}  Qc7 {[%clk 0:02:56]} 4. g3 {[%clk 0:03:00]}  dxe4 {[%clk 0:02:56]} 5. dxe4 {[%clk 0:03:00]}  e5 {[%clk 0:02:56]} 6. Bg2 {[%clk 0:03:00]}  Nf6 {[%clk 0:02:56]} 7. Nbd2 {[%clk 0:02:59]}  Bc5 {[%clk 0:02:54]} 8. O-O {[%clk 0:02:59]}  O-O {[%clk 0:02:54]} 9. Qe1 {[%clk 0:02:58]}  a5 {[%clk 0:02:45]} 10. a4 {[%clk 0:02:58]}  b6 {[%clk 0:02:42]} 11. Nc4 {[%clk 0:02:38]}  Nbd7 {[%clk 0:02:38]} 12. Nfd2 {[%clk 0:02:23]}  b5 {[%clk 0:02:18]} 13. axb5 {[%clk 0:02:20]}  cxb5 {[%clk 0:02:19]} 14. Ne3 {[%clk 0:02:20]}  Ba6 {[%clk 0:02:01]} 15. c3 {[%clk 0:02:18]}  b4 {[%clk 0:01:39]} 16. c4 {[%clk 0:02:18]}  Bxe3 {[%clk 0:01:36]} 17. Qxe3 {[%clk 0:02:19]}  Bxc4 {[%clk 0:01:36]} 18. Nxc4 {[%clk 0:02:18]}  Qxc4 {[%clk 0:01:37]} 19. Re1 {[%clk 0:02:15]}  Nc5 {[%clk 0:01:31]} 20. Qg5 {[%clk 0:01:57]}  h6 {[%clk 0:01:19]} 21. Qxe5 {[%clk 0:01:56]}  Nd3 {[%clk 0:01:19]} 22. Qf5 {[%clk 0:01:45]}  Nxe1 {[%clk 0:01:18]} 23. Bxh6 {[%clk 0:01:45]}  gxh6 {[%clk 0:00:52]} 24. Qxf6 {[%clk 0:01:45]}  Nxg2 {[%clk 0:00:52]} 25. Qxh6 {[%clk 0:01:44]}  Qe6 {[%clk 0:00:47]} 26. Qg5+ {[%clk 0:01:40]}  Qg6 {[%clk 0:00:47]} 27. Qd5 {[%clk 0:01:39]}  Nf4 {[%clk 0:00:46]} 28. Qd6 {[%clk 0:01:38]}  Qxd6 {[%clk 0:00:46]} 0-1


[Site "https://www.chess.com"]

[Event "Titled Tuesday Blitz April 05 Late 2022"]
[White "Herrera Reyes, Jose Antonio"]
[Black "Czopor, Maciej"]
[WhiteFideId "2274914"]
[BlackFideId "21805431"]
[WhiteElo "2361"]
[BlackElo "1999"]
[Result "1-0"]
[Round "07"]
[TimeControl "180+1"]
[Date "2022.04.05"]
[WhiteClock "0:00:22"]
[BlackClock "0:00:06"]

1. Nf3 {[%clk 0:03:00]}  Nf6 {[%clk 0:02:59]} 2. g3 {[%clk 0:02:58]}  g6 {[%clk 0:02:59]} 3. Bg2 {[%clk 0:02:58]}  Bg7 {[%clk 0:03:00]} 4. d3 {[%clk 0:02:58]}  O-O {[%clk 0:03:01]} 5. Nc3 {[%clk 0:02:59]}  d5 {[%clk 0:03:01]} 6. h4 {[%clk 0:02:59]}  Bg4 {[%clk 0:03:01]} 7. Bg5 {[%clk 0:02:58]}  c6 {[%clk 0:03:00]} 8. Qd2 {[%clk 0:02:57]}  b5 {[%clk 0:02:59]} 9. a3 {[%clk 0:02:51]}  a5 {[%clk 0:02:58]} 10. Bh6 {[%clk 0:02:51]}  Nbd7 {[%clk 0:02:54]} 11. Bxg7 {[%clk 0:02:51]}  Kxg7 {[%clk 0:02:54]} 12. h5 {[%clk 0:02:51]}  Nxh5 {[%clk 0:02:50]} 13. Rh4 {[%clk 0:02:48]}  Ndf6 {[%clk 0:02:31]} 14. Ne5 {[%clk 0:02:41]}  b4 {[%clk 0:02:29]} 15. Nd1 {[%clk 0:02:36]}  Qc8 {[%clk 0:02:02]} 16. f3 {[%clk 0:02:29]}  Qc7 {[%clk 0:01:14]} 17. d4 {[%clk 0:02:15]}  Be6 {[%clk 0:01:14]} 18. g4 {[%clk 0:02:13]}  c5 {[%clk 0:01:14]} 19. gxh5 {[%clk 0:02:01]}  Nxh5 {[%clk 0:01:13]} 20. axb4 {[%clk 0:01:52]}  axb4 {[%clk 0:01:09]} 21. Rxa8 {[%clk 0:01:52]}  Rxa8 {[%clk 0:01:10]} 22. f4 {[%clk 0:01:22]}  f6 {[%clk 0:01:03]} 23. Nd3 {[%clk 0:01:17]}  cxd4 {[%clk 0:01:03]} 24. Qxb4 {[%clk 0:01:12]}  Ng3 {[%clk 0:01:02]} 25. Qc5 {[%clk 0:01:07]}  Qb7 {[%clk 0:00:53]} 26. Qxd4 {[%clk 0:01:06]}  Nf5 {[%clk 0:00:51]} 27. Qf2 {[%clk 0:00:43]}  Nxh4 {[%clk 0:00:49]} 28. Qxh4 {[%clk 0:00:44]}  Ra1 {[%clk 0:00:48]} 29. Qf2 {[%clk 0:00:40]}  Bf5 {[%clk 0:00:46]} 30. Qe3 {[%clk 0:00:38]}  e6 {[%clk 0:00:39]} 31. b3 {[%clk 0:00:35]}  Qc7 {[%clk 0:00:36]} 32. Kd2 {[%clk 0:00:33]}  Ra2 {[%clk 0:00:31]} 33. Nc3 {[%clk 0:00:31]}  Ra6 {[%clk 0:00:24]} 34. b4 {[%clk 0:00:22]}  h5 {[%clk 0:00:21]} 35. Nc5 {[%clk 0:00:22]}  Ra3 {[%clk 0:00:18]} 36. Nb5 {[%clk 0:00:22]}  Rxe3 {[%clk 0:00:15]} 37. Nxc7 {[%clk 0:00:21]}  Rg3 {[%clk 0:00:15]} 38. Bf3 {[%clk 0:00:20]}  h4 {[%clk 0:00:15]} 39. Ke1 {[%clk 0:00:20]}  Rg1+ {[%clk 0:00:07]} 40. Kf2 {[%clk 0:00:20]}  Rb1 {[%clk 0:00:07]} 41. N5xe6+ {[%clk 0:00:20]}  Kf7 {[%clk 0:00:07]} 42. Bxd5 {[%clk 0:00:18]}  Rxb4 {[%clk 0:00:07]} 43. Nd4+ {[%clk 0:00:18]}  Kg7 {[%clk 0:00:04]} 44. Nxf5+ {[%clk 0:00:18]}  gxf5 {[%clk 0:00:05]} 45. Bf3 {[%clk 0:00:18]}  Rxf4 {[%clk 0:00:05]} 46. Ne6+ {[%clk 0:00:18]}  Kh6 {[%clk 0:00:03]} 47. Nxf4 {[%clk 0:00:19]}  Kg5 {[%clk 0:00:04]} 48. Nh3+ {[%clk 0:00:19]}  Kg6 {[%clk 0:00:04]} 49. c4 {[%clk 0:00:20]}  Kf7 {[%clk 0:00:04]} 50. c5 {[%clk 0:00:21]}  Ke7 {[%clk 0:00:05]} 51. c6 {[%clk 0:00:21]}  Kd6 {[%clk 0:00:06]} 52. Ke3 {[%clk 0:00:22]} 1-0


[Site "https://www.chess.com"]